Cogmind - Beta 14 *** ADVENTURER MODE // 2024.09.24 @ 16:25:26 // Winter2019/RPGLIKE Player: Gallgagger Result: Self-destructed Performance ------------- Evolutions (2) 1000 Regions Visited (4) 800 Robots Destroyed (97) 485 Value Destroyed (2625) 2625 Prototype IDs (6) 120 Alien Tech Used (0) 0 Bonus (116) 116 TOTAL SCORE: 5146 Bonus ------- High Alert Combat Kills 57 Follower Combat Kills 60 Friendly Fire -1 Cogmind --------- Core Integrity 664/1100 Matter 300/300 Energy 180/180 System Corruption 0% Temperature Cool (0) Movement Rolling (140) Ox3 Location -8/Materials Parts ------- > --- POWER (2+1) ------ Light Deuterium Engine Light Deuterium Engine > --- PROPULSION (2) --- Subdweller Monowheel Subdweller Monowheel > --- UTILITY (3+1) ---- Humpback Gun Armor (+) Rainbow Chip > --- WEAPON (2+3) ----- Power Maul Makeshift Sword > --- INVENTORY (32) --- Wheel Wheel Cesium-ion Thruster Improved VTOL Module Faulty Improved VTOL Module Improved Sensor Array Scrap Shield System Shield Makeshift System Restoration Module Bomb Drone Bay (16/16) Medium Laser Pulse Rifle Makeshift Laser Shrapnel Trap Shrapnel Trap SUBCON Basin (Full) Peak State ------------ > --- POWER ------------ Light Deuterium Engine Light Deuterium Engine > --- PROPULSION ------- Wheel Subdweller Monowheel Flight Unit > --- UTILITY ---------- Humpback Gun Armor Rainbow Chip > --- WEAPON ----------- Power Maul Makeshift Sword > --- INVENTORY -------- Subdweller Monowheel Subdweller Monowheel Flight Unit Improved VTOL Module Improved VTOL Module Improved Sensor Array Scrap Shield System Shield Makeshift System Restoration Module Bomb Drone Bay Medium Laser Pulse Rifle Makeshift Laser Shrapnel Trap Shrapnel Trap SUBCON Basin [Rating: 65] Favorites ----------- Power Ion Engine Engine Ion Engine Power Core Light Nuclear Core Propulsion Flight Unit Wheel Subdweller Monowheel Flight Unit Flight Unit Utility Gun Armor Device Bomb Drone Bay Storage Humpback Processor Rainbow Chip Protection Gun Armor Weapon Makeshift Sword Energy Gun Medium Laser Ballistic Gun Shotgun Launcher Rocket Launcher Impact Weapon Power Maul Slashing Weapon Makeshift Sword Build | -11 -10 -10 -10 -8 ------- Run | Yrd Mat Min Sub Mat Slots Evolved 5 | 4 . 1 . . Power 1 | 1 . . . . Propulsion 1 | 1 . . . . Utility 2 | 1 . 1 . . Weapon 1 | 1 . . . . Parts Attached 57 | 5 8 1 31 12 Power 6 | 2 1 . . 3 Engine 5 | 2 . . . 3 Core 1 | . 1 . . . Reactor . | . . . . . Propulsion 15 | 2 3 . 6 4 Treads . | . . . . . Leg . | . . . . . Wheel 11 | 2 . . 5 4 Hover . | . . . . . Flight 4 | . 3 . 1 . Utility 10 | . 2 1 7 . Device 5 | . 1 1 3 . Storage 2 | . . . 2 . Processor 2 | . 1 . 1 . Hackware . | . . . . . Protection 1 | . . . 1 . Artifact . | . . . . . Weapon 26 | 1 2 . 18 5 Energy Gun 2 | 1 . . . 1 Energy Cannon . | . . . . . Ballistic Gun 13 | . 2 . 11 . Ballistic Cannon . | . . . . . Launcher 6 | . . . 6 . Special Weapon . | . . . . . Impact Weapon 3 | . . . . 3 Slashing Weapon 2 | . . . 1 1 Piercing Weapon . | . . . . . Special Melee Weapon . | . . . . . Unidentified Prototypes 4 | . . 1 2 1 Parts Lost 2 | . . . 1 1 Power 1 | . . . 1 . Propulsion 1 | . . . . 1 Utility . | . . . . . Weapon . | . . . . . Highest Loss Streak 1 | . . . 1 1 To Critical Strikes 1 | . . . 1 . Average Slot Usage (%) 66 | . 77 76 62 65 Engine 10 | . 13 11 7 12 Core 4 | . 10 11 4 . Wheel 7 | . 14 . 2 13 Flight 12 | . 10 22 16 4 Device 3 | . 5 7 6 . Storage 2 | . . . 1 6 Processor 6 | . 8 11 6 6 Protection 4 | . . . 5 6 Ballistic Gun 4 | . 4 11 7 . Impact Weapon 2 | . . . . 5 Slashing Weapon 3 | . . . 2 6 Peak Build Rating 65 | 5 12 23 58 65 Average Rating 44 | 4 9 19 41 62 On Entrance 19 | . 5 9 23 58 Naked Turns . | . . . . . Heaviest Build 220 | 12 13 21 218 220 Greatest Support 55 | 32 32 13 55 55 Greatest Overweight (x) 12 | . . 1 12 8 Average Overweight (x) 1 | . . . . 4 Largest Inventory Capacity 32 | . . 1 32 32 Average Capacity 15 | . . . 6 32 Most Carried 32 | . . 1 26 32 Average Carried 13 | . . . 3 29 Final Capacity 32 | . . 1 32 32 Final Carried 32 | . . 1 26 32 Class Distribution -------------------- 50% | Hacker-Mutant 36% | Hauler-Gladiator 9% | Hauler-Mutant 3% | Mutant Dominant Class ---------------- Hacker-Mutant | -10/Materials Hacker-Mutant | -10/Mines Hacker-Mutant | -10/Subcaves Hauler-Gladiator | -8/Materials Resources | -11 -10 -10 -10 -8 ----------- Run | Yrd Mat Min Sub Mat Matter Collected 1467 | 250 141 66 890 120 Remotely . | . . . . . Salvage Created 2979 | . 448 67 1026 1438 Parts 175 | . 26 16 63 70 Haulers Intercepted 4 | . 2 . . 2 Recyclers Shooed . | . . . . . Parts Field Recycled . | . . . . . Retrieved Matter . | . . . . . Parts Self-Destructed 22 | . . . 22 . Prevented . | . . . . . Kills | -11 -10 -10 -10 -8 ------- Run | Yrd Mat Min Sub Mat Combat Hostiles Destroyed 78 | . 9 8 30 31 Melee 29 | . . . 5 24 Guns 38 | . 9 8 21 . AOE 4 | . . . 4 . Classes Destroyed 12 | . 4 1 2 5 Worker 2 | . . . . 2 Builder 2 | . . . . 2 Hauler 4 | . 2 . . 2 Recycler 1 | . . . . 1 Turret 2 | . . . 2 . Watcher 8 | . 3 . . 5 Swarmer 30 | . 6 6 8 10 Grunt 14 | . 3 . 2 9 Duelist 1 | . . . . 1 Sentry 13 | . . 2 1 10 Hunter 1 | . . . . 1 Subdweller 19 | . . . 19 . Best Kill Streak 6 | . 3 3 6 4 Combat Bots Only 6 | . 3 3 6 4 Max Kills in Single Turn 2 | . 1 1 2 1 Gunslinging . | . . . . . Exploded 2 | . . . 2 . Melee 1 | . . . 1 1 Uniques/NPCs Destroyed . | . . . . . Combat | -11 -10 -10 -10 -8 -------- Run | Yrd Mat Min Sub Mat Hostile Shots Fired 400 | . 35 21 187 157 Missed 131 | . 11 7 73 40 Damage Taken 3350 | . 177 117 1746 1310 Core 2622 | . 141 96 1360 1025 Absorbed by Shields . | . . . . . Redirected to Core 1962 | . 109 60 1042 751 Ignored by Resistances 957 | . 58 34 491 374 Core Remaining (%) 68 | 100 . . 37 . Volleys Fired 189 | . 44 14 131 . Largest 2 | . 2 1 2 . Hottest 70 | . 70 23 53 . Shots Fired 192 | . 45 14 133 . Gun 177 | . 45 14 118 . Cannon . | . . . . . Launcher 15 | . . . 15 . Special . | . . . . . Kinetic 148 | . 16 14 118 . Thermal 29 | . 29 . . . Explosive 15 | . . . 15 . Electromagnetic . | . . . . . Robot Hit Streak 36 | . 21 11 36 . Robot Miss Streak 2 | . 1 2 2 . Penetration Max . | . . . . . Secondary Targets . | . . . . . Shots Hit Robots 274 | . 43 14 125 92 Core Hits 119 | . 19 10 61 29 Critical Kills . | . . . . . Critical Parts Destroyed 7 | . . . 1 6 Critical Strikes 18 | . 5 . 3 10 Burn 5 | . 5 . . . Destroy 1 | . . . 1 . Smash 6 | . . . . 6 Sever 6 | . . . 2 4 Melee Attacks 141 | . . . 27 114 Impact 36 | . . . . 36 Slashing 105 | . . . 27 78 Piercing . | . . . . . Sneak Attacks 8 | . . . . 8 Combat Hostiles 1 | . . . . 1 Follow-up Attacks 7 | . . . . 7 Damage Inflicted 7653 | . 597 215 3100 3741 Guns 2761 | . 597 215 1949 . Cannons . | . . . . . Explosions 582 | . . . 582 . Melee 4310 | . . . 569 3741 Ramming . | . . . . . Kinetic 2410 | . 246 215 1949 . Thermal 351 | . 351 . . . Explosive 582 | . . . 582 . Electromagnetic . | . . . . . Impact 1554 | . . . . 1554 Slashing 2756 | . . . 569 2187 Piercing . | . . . . . Highest Corruption . | . . . . . Average Corruption . | . . . . . Corruption Purged . | . . . . . Corruption Blocked . | . . . . . Overload Shots . | . . . . . Overflow Damage 652 | . . . . 652 Projectiles . | . . . . . Explosions . | . . . . . Melee 652 | . . . . 652 Knockbacks 2 | . . . . 2 Impact 2 | . . . . 2 Kinetic . | . . . . . Secondary . | . . . . . Self-Inflicted Damage 48 | . . . 48 . Shots 3 | . . . 3 . Rammed . | . . . . . Targets Rammed . | . . . . . Kicked . | . . . . . Crushed . | . . . . . Highest Temperature 374 | . 184 . . 374 Average Temperature 115 | . 87 . . 160 Received Heat Transfer 1092 | . 60 27 510 495 Siege Activations . | . . . . . Robots Corrupted 11 | . . . . 11 Combat Hostiles 7 | . . . . 7 Parts Fried 14 | . . . . 14 Impact Corruptions 18 | . . . . 18 Robots Melted 1 | . 1 . . . Combat Hostiles . | . . . . . Parts Melted 5 | . 4 . 1 . Heat Transferred 1406 | . 1406 . . . Parts Sabotaged . | . . . . . Parts Stolen . | . . . . . Parts Stripped . | . . . . . Power Chain Reactions . | . . . . . Alert | -11 -10 -10 -10 -8 ------- Run | Yrd Mat Min Sub Mat Peak Influence 611 | . 205 327 . 611 Initial 41 | . . 41 . . Average 115 | . 77 160 . 110 Maximum Alert Level 2 | . 1 1 . 2 Low Security (%) 81 | 100 99 66 . 82 Level 1 12 | . . 33 . 8 Level 2 5 | . . . . 8 Level 3 . | . . . . . Level 4 . | . . . . . Level 5 . | . . . . . High Security . | . . . . . Max Security . | . . . . . Squads Dispatched 3 | . 1 . . 2 Investigation 2 | . 1 . . 1 Extermination . | . . . . . Reinforcement 1 | . . . . 1 Assault . | . . . . . Garrison . | . . . . . Intercept . | . . . . . Searches Triggered . | . . . . . Construction Impeded . | . . . . . Haulers Reinforced . | . . . . . Active Scanning Responses . | . . . . . Cargo Convoy Interrupts . | . . . . . Stealth | -11 -10 -10 -10 -8 --------- Run | Yrd Mat Min Sub Mat Distress Signals 5 | . . . . 5 Communications Jammed . | . . . . . Distress Signals . | . . . . . Times Spotted 120 | . 14 9 39 58 Peak Tracking Total 7 | . 3 3 6 7 Tactical Retreats 11 | . 1 1 2 7 Traps | -11 -10 -10 -10 -8 ------- Run | Yrd Mat Min Sub Mat Traps Triggered . | . . . . . Indirectly . | . . . . . Trap Hack Attempts . | . . . . . Triggered . | . . . . . Disarmed . | . . . . . Reprogrammed . | . . . . . Reused . | . . . . . Traps Extracted . | . . . . . Installed 4 | . . 4 . . Triggered . | . . . . . Most Traps Carried 2 | . . . 2 2 Machines | -11 -10 -10 -10 -8 ---------- Run | Yrd Mat Min Sub Mat Machines Disabled 1 | . . . 1 . Max in Single Turn 1 | . . . 1 . Machines Repaired . | . . . . . Machines Dismantled . | . . . . . Machines Sabotaged . | . . . . . Overloaded Fab Kills . | . . . . . Hacking | -11 -10 -10 -10 -8 --------- Run | Yrd Mat Min Sub Mat Machines Accessed 21 | . 6 1 3 11 Terminals 17 | . 6 . . 11 Fabricators . | . . . . . Repair Stations . | . . . . . Recycling Units . | . . . . . Scanalyzers . | . . . . . Garrison Access . | . . . . . Total Hacks 77 | . 23 1 6 47 Successful 49 | . 10 1 6 32 Failed 28 | . 13 . . 15 Catastrophic 4 | . 1 . . 3 Database Lockouts . | . . . . . Manual 67 | . 23 . . 44 Terminals 70 | . 23 . . 47 Fabricators . | . . . . . Repair Stations . | . . . . . Recycling Units . | . . . . . Scanalyzers . | . . . . . Garrison Access . | . . . . . Terminal Hacks 25 | . 2 1 6 16 Record 5 | . . . 4 1 Robot Analysis 4 | . . . . 4 Prototype ID Bank 1 | . . . . 1 Open Door 2 | . . 1 1 . Branch Access Points 2 | . 1 . . 1 Terminal Index 2 | . 1 . . 1 Alert Level 2 | . . . . 2 Unreport Threat 5 | . . . . 5 Dispatch Records 1 | . . . . 1 Release Object 1 | . . . 1 . Fabricator Hacks . | . . . . . Repair Station Hacks . | . . . . . Recycling Unit Hacks . | . . . . . Scanalyzer . | . . . . . Garrison Access Hacks . | . . . . . Unauthorized Hacks 24 | . 8 . . 16 Terminals 24 | . 8 . . 16 Track 1 | . . . . 1 Assimilate 2 | . . . . 2 Botnet 16 | . 6 . . 10 Detonate 1 | . 1 . . . Disrupt 2 | . . . . 2 Operators 1 | . . . . 1 Skim 1 | . 1 . . . Fabricators . | . . . . . Repair Stations . | . . . . . Recycling Units . | . . . . . Scanalyzers . | . . . . . Garrison Access . | . . . . . Data Cores Recovered . | . . . . . Used . | . . . . . Hacking Detections 13 | . 6 . . 7 Full Trace Events 2 | . 1 . . 1 Feedback Events . | . . . . . Feedback Blocked . | . . . . . Robot Schematics Acquired . | . . . . . Robots Built . | . . . . . Authchips . | . . . . . Time . | . . . . . Total Robot Build Rating . | . . . . . Part Schematics Acquired . | . . . . . Parts Built . | . . . . . Authchips . | . . . . . Time . | . . . . . Total Part Build Rating . | . . . . . Parts Repaired . | . . . . . Time . | . . . . . Parts Recycled . | . . . . . Recycled Matter . | . . . . . Retrieved Matter . | . . . . . Retrieved Components . | . . . . . Parts Scanalyzed . | . . . . . Part Schematics Acquired . | . . . . . Parts Damaged . | . . . . . Bothacking | -11 -10 -10 -10 -8 ------------ Run | Yrd Mat Min Sub Mat Used RIF Installer . | . . . . . Robots Hacked . | . . . . . Non-combat . | . . . . . Combat . | . . . . . Robot Hacks Applied . | . . . . . Relay Couplers Released . | . . . . . Fabnet Peak Effective % . | . . . . . Robots Rewired . | . . . . . Allies Hacked . | . . . . . Hacks Repelled . | . . . . . Allies | -11 -10 -10 -10 -8 -------- Run | Yrd Mat Min Sub Mat Total Allies 5 | . . 4 . 1 Largest Group 4 | . . 4 3 1 Highest-Rated Group 71 | . . 71 40 10 Highest-Rated Ally 31 | . . 31 16 10 Total Orders 2 | . . 2 . . STAY 1 | . . 1 . . FOLLOW 1 | . . 1 . . Ally Attacks 12 | . . . 12 . Total Damage 158 | . . . 158 . Kills 3 | . . . 3 . Allies Corrupted 1 | . . . 1 . Allies Melted . | . . . . . Intel | -11 -10 -10 -10 -8 ------- Run | Yrd Mat Min Sub Mat Robot Analysis Total 4 | . . . . 4 Derelict Logs Recovered 4 | . . 2 2 . Drone Launches . | . . . . . Drone Recoveries . | . . . . . Exploration | -11 -10 -10 -10 -8 ------------- Run | Yrd Mat Min Sub Mat Turns Passed 7327 | 57 528 909 3013 2820 Spaces Moved 6887 | 51 571 900 3967 1398 Core 17 | 1 . . 16 . Treads . | . . . . . Legs . | . . . . . Wheels 2071 | 50 215 . 408 1398 Hover . | . . . . . Flight 4799 | . 356 900 3543 . Fastest Speed 34 | 50 37 37 34 140 Average Speed 79 | 99 60 78 58 146 Slowest Speed 650 | 100 100 117 650 200 Overloaded Moves . | . . . . . Propulsion Burnouts . | . . . . . Robots Hopped 19 | . 7 8 4 . Cave-ins Triggered . | . . . . . Exploration Rate (%) 75 | 4 85 98 97 94 Regions Visited 4 Branch Regions 2 Pre-discovered Areas 2 | . . . 2 . Known Exits Taken 3 | . 1 1 1 . Unknown Exits Taken 1 | 1 . . . . Scrap Searched 18 | . . 1 17 . Spaces Dug 7 | . . . 6 1 Terrain Destroyed 97 | . . . 96 1 Melee 3 | . . . 2 1 Projectile . | . . . . . AOE 94 | . . . 94 . Terrain Rammed . | . . . . . Walls Destroyed . | . . . . . Machines Disabled . | . . . . . Actions | -11 -10 -10 -10 -8 --------- Run | Yrd Mat Min Sub Mat Total 8364 | 55 698 1083 4485 2043 Wait 953 | . 77 160 261 455 Move 6846 | 50 556 884 3958 1398 Hop 18 | . 7 7 4 . Pick Up 25 | . . 1 17 7 Fast Attach 34 | 5 3 1 16 9 Attach 2 | . . . 2 . Detach . | . . . . . Swap 21 | . 5 . 13 3 Drop 34 | . 4 . 22 8 Fire 189 | . 44 14 131 . Melee 130 | . . . 27 103 Ram . | . . . . . Kick . | . . . . . Crush . | . . . . . Escape Stasis . | . . . . . Rewire 1 | . . . 1 . Trap 4 | . . 4 . . Miscellaneous 107 | . 2 12 33 60 Route ------- -11/Scrapyard -10/Materials (discovered 4 exits: *Mat x2 / *Min x2) -10/Mines (discovered 4 exits: *Mat x2 / *Exi / *Sub) -10/Subcaves (discovered 3 exits: *Mat x2 / [*Rec]) -8/Materials (discovered 3 exits: [*Fac x3]) History --------- Turn | Location | Event 16 | -11/Scrapyard | Upgraded with Power slot (x1) 16 | -11/Scrapyard | Upgraded with Propulsion slot (x1) 16 | -11/Scrapyard | Upgraded with Utility slot (x1) 16 | -11/Scrapyard | Upgraded with Weapon slot (x1) 25 | -11/Scrapyard | Discovered new exit (range 15) 58 | -11/Scrapyard | Entered Materials 180 | -10/Materials | Discovered new exit (range 3) 390 | -10/Materials | Discovered new exit (range 14) 451 | -10/Materials | Discovered new exit (range 5) 452 | -10/Materials | Identified exit to Mines 586 | -10/Materials | Entered Mines 588 | -10/Mines | Reached level 2 589 | -10/Mines | Build established: Hacker-Mutant 589 | -10/Mines | Received a Mining Laser from a helpful Derelict 594 | -10/Mines | Deemed a non-threat by the Exiles lab entrance 594 | -10/Mines | Discovered new exit (range 5) 595 | -10/Mines | Identified exit to Exiles 605 | -10/Mines | Learned Materials emergency access door positions 608 | -10/Mines | Discovered new exit (range 10) 639 | -10/Mines | Received a Rocket Launcher from a helpful Derelict 709 | -10/Mines | Assisted by bots powering up and referring to "LRC-V3" 830 | -10/Mines | Found the Drone Emporium 831 | -10/Mines | Upgraded with Utility slot (x1) 831 | -10/Mines | Found Prototype Device 831 | -10/Mines | Identified Bomb Drone Bay 862 | -10/Mines | Discovered new exit (range 3) 864 | -10/Mines | Identified exit to Materials 914 | -10/Mines | YI-UF0 nonchalantly dropped a Grenade Launcher on the ground 1007 | -10/Mines | Found a hidden stash of uninstalled traps 1276 | -10/Mines | Discovered new exit (range 3) 1277 | -10/Mines | Identified exit to Subcaves 1495 | -10/Mines | Entered Subcaves 1495 | -10/Subcaves | Accompanied by 3 allies 1497 | -10/Subcaves | Reached level 3 1582 | -10/Subcaves | A swath of the cavern ceiling suddenly collapsed 1701 | -10/Subcaves | Shifting Twisted Machinery released Sub. Laser 1706 | -10/Subcaves | Shifting Twisted Machinery released Sub. Machine Gun 1752 | -10/Subcaves | A swath of the cavern ceiling suddenly collapsed 1836 | -10/Subcaves | Ambushed by Subdwellers from Twisted Machinery 1841 | -10/Subcaves | Discovered new exit (range 12) 1859 | -10/Subcaves | Identified exit to Materials 1910 | -10/Subcaves | Shifting Twisted Machinery released Sub. Monowheel 1940 | -10/Subcaves | Visited 4L-MR0's lab 2003 | -10/Subcaves | Found Prototype Protection 2003 | -10/Subcaves | Identified Gun Armor 2005 | -10/Subcaves | Attached Gun Armor, gained temporary slots: Weapon x2 2102 | -10/Subcaves | Visited Clippyterm 2106 | -10/Subcaves | Learned location of Deep Caves (-7) 2210 | -10/Subcaves | Discovered exit to Materials (range 10) 2220 | -10/Subcaves | Ambushed by Subdweller buried in earth 2302 | -10/Subcaves | Learned Materials trap positions 2321 | -10/Subcaves | Shifting Twisted Machinery released Spk. Treads 2357 | -10/Subcaves | A Subdweller sparked back to life 2357 | -10/Subcaves | A Subdweller sparked back to life 2387 | -10/Subcaves | Core integrity fell below 50% 2390 | -10/Subcaves | Shifting Twisted Machinery released Sub. Optics 2412 | -10/Subcaves | Core integrity fell below 20% 2425 | -10/Subcaves | Found Prototype Processor 2425 | -10/Subcaves | Identified Rainbow Chip 2426 | -10/Subcaves | Attached Rainbow Chip, gained temporary slots: Power, Propulsion, Utility, Weapon 2717 | -10/Subcaves | Discovered new exit (range 15) 2740 | -10/Subcaves | Reached level 4 2778 | -10/Subcaves | Learned location of Zion (-7) 2778 | -10/Subcaves | Met a Zionite searching for "candidates" 2938 | -10/Subcaves | Disturbed a concealed Subdweller 3037 | -10/Subcaves | Disturbed a concealed Subdweller 3290 | -10/Subcaves | Learned Materials terminal intel 3439 | -10/Subcaves | Curiously followed by a Cobbler waking with a query about "LVR3C" 3570 | -10/Subcaves | Disturbed a concealed Subdweller 3612 | -10/Subcaves | Shifting Twisted Machinery released Mak. Laser 4137 | -10/Subcaves | Found SUBCON Basin 4424 | -10/Subcaves | Build established: Hauler-Mutant 4508 | -10/Subcaves | Entered Materials 4509 | -8/Materials | Loaded intel: 14 trap records 4509 | -8/Materials | Core integrity fell below 50% 4510 | -8/Materials | Reached level 5 4510 | -8/Materials | Reached level 6 4511 | -8/Materials | Loaded intel: 12 terminal locations 4747 | -8/Materials | Reached level 7 4879 | -8/Materials | Core integrity fell below 20% 4944 | -8/Materials | Build established: Hauler-Gladiator 5156 | -8/Materials | Discovered new exit (range 8) 5243 | -8/Materials | Reached level 8 5808 | -8/Materials | Discovered new exit (range 16) 6535 | -8/Materials | Reached level 9 7032 | -8/Materials | Discovered new exit (range 16) 7328 | -8/Materials | Self-destructed Last Messages --------------- >>Trojan(Botnet) Trojan loaded successfully. Testing... Terminal linked with 9 systems. Awaiting botnet instructions. >>Trojan(Assimilate) Trojan loaded successfully. Testing... System interface override in place. 07086_ Connecting with Terminal... >>Access(Branch) No branch access points found. 07086_ ALERT: Suspicious activity at Terminal M003. Dispatching Investigation squad. 07106_ G-47 Trooper destroyed. 07126_ Used Protomatter to restore core integrity (+156, depleted) 07270_ Dropped Flight Unit. 07270_ Acquired Cesium-ion Thruster. 07284_ R-06 Scavenger collects Flight Unit. Map ----- +----------------------------------------------------+ | | | | | | | #########???##################???????????????????? | | # #?? # #???????????????????? | | #""" #??""" """ ]# """ #???????????????????? | | #""" [ ## """ """ # """ #########???????????? | | #""" ## """ """ ! # """ # ???????????? | | # ## # # """ """ ??????????? | | ####+#############+######+#### """ """ #?????????? | | # ^ [#=""" """ #?????????? | | # < %+% #?????????? | | # #= #?????????? | | ####+### /############ # #?????????? | | ## #??????????# # = #?????##### | | ##/ !!!!#??????????# k###### ####?????# | | ##//!!!!#??????????# #??????#?????#### | | ]]] #########??????????# #????????????# + "" | | ]] #??????????????????# #????????????# ## S"" | | ]] #??????????????????# #????????????# ## "" | | #######??????????????????# ##############+## | | ????????????????????###### # = # = ####+ | | ????????????????????#"""## # = # #??# | | ##########????????###"T"##u + [# #??# | | """ """" #????????# # "T" # #??# | | """ """" #????????# ! k@ # """ # #??# | | """ """" #????????# """ # # #??# | | #?######## """ ######## #??# | | = ! #?# !# """ #??????# #??# | | ###+######?# ! = # #??????# #??# | | ####### + o ##########+######### | | ## # ! # " "" # """ | | ?# # # "R"" # """ t | | ## # """ # """" # """ ! ^ | | # # """ ######## ##################### | | # # """ #???#""" # ! #????????????? | | # # #???#"G """ #^ #????????????? | | + + """ #???#""" """ + """#????????????? | | # # """ #???#### """ # """#????????????? | | # # """ #??????# # """#????????????? | | # # #?????## #? #????????????? | | # # #?????# """ ###########?????????? | | ## #########???# """ # #?????????? | | ?# # """ #???# """ # "T" #?????????? | | ?# # "T" ]#????# %+% """ #?????????? | | # # #????# # #?????????? | | # #[ #????#####"Y"# ###########?????????? | | + %+% !! #????????#"""# #?######????????????? | | # # ! !#????????##### #? * #????????????? | | ## ########????????????# # #????????????? | +----------------------------------------------------+ Best States ------------- Heat Dissipation 39 Energy Generation 23 Energy Capacity 400 Matter Stores 300 Matter Capacity 300 Sight Range 16 Terrain Scan Density 10 Armor Coverage 60 Resistance: KI 20 Resistance: TH 20 Resistance: EX 20 Resistance: EM 20 Resistance: I 20 Resistance: S 20 Resistance: P 20 Evasion (%) 63 Offensive Hacking 20 Defensive Hacking 5 Item Schematics ----------------- None Robot Schematics ------------------ None Fabricated ------------ Nothing Alien Tech Used ----------------- None Achievements -------------- Packrat Tank Challenges ------------ None RPGLIKE | -11 -10 -10 -10 -8 --------- Run | Yrd Mat Min Sub Mat Levels Raised 8 | . . 1 2 5 XP Earned 17054 | 4000 1275 1405 2430 7944 XP Spent 7870 | 2000 1920 1050 2900 . Upgrades 27 | 4 8 2 13 . Power Slot 1 | 1 . . . . Propulsion Slot 1 | 1 . . . . Utility Slot 2 | 1 . 1 . . Weapon Slot 1 | 1 . . . . Core Integrity 10 | . . . 10 . Heat Dissipation 2 | . 2 . . . Mass Support 3 | . 1 . 2 . Inventory Capacity 2 | . . 1 1 . Ranged Accuracy 2 | . 2 . . . Hack Attack % 2 | . 2 . . . Hack Defense % 1 | . 1 . . . Protomatter Created 823 | . 11 125 260 427 Integrity Restored 2239 | . 33 257 668 1281 Core 2186 | . 33 204 668 1281 Parts 53 | . . 53 . . Protomatter Decayed 70 | . . 21 49 . Game ------ Seed CompositeReactiveRigger Manual? 0 Play Time 01:15:22 Cumulative 120.0 hours Start 2024.09.23 @ 19:20:38 End 2024.09.24 @ 16:25:26 Sessions 4 Manual Loads 0 Difficulty Adventurer Special Mode Winter2019/RPGLIKE Game No. 68 Rogue 0 Adventurer 68 Explorer 0 Win Type - Total 6 Types 2/0/2/2/0/0/0/0/0 Lore% 58 Gallery% 56 Achievement% 71 Wizard Run 0 Options --------- Layout 2 ASCII 0 Keyboard 0 Movement Numpad Keybinds 0 Fullscreen 2 Font 24/Smallcaps Map View 50x44 Zoom Use 0% Tactical HUD 1 Map Filters NONE Filters NONE Steam 1 RUN: 7edbaf46-9b86-4444-bc26-16f859aa2fdb